bitfinex/quotes_ETHUSD_20260102
["timestamp","ask_amount","ask_price","bid_price","bid_amount"]
[1767396089662,3.34382022,3132.0,3131.6,0.838]
[1767396089954,2.33237176,3131.9,3131.6,0.838]
[1767396090930,5.52535341,3131.9,3131.6,0.838]
[1767396091862,5.52535341,3131.9,3131.5,0.001]
[1767396092067,2.33237176,3131.7,3131.5,0.001]
[1767396092437,0.07154896,3131.6,3131.5,0.001]
[1767396093071,2.40392072,3131.6,3131.1,0.001]
[1767396094232,5.59723669,3131.6,3131.1,0.001]
[1767396099676,2.33237176,3131.5,3131.1,0.001]
[1767396099880,2.33237176,3131.4,3131.1,0.001]
[1767396102954,5.5258385,3131.4,3131.1,0.001]
[1767396103282,2.33237176,3131.4,3131.1,0.001]
[1767396103674,5.52586909,3131.4,3131.1,0.001]
[1767396107691,5.52586909,3131.4,3130.6,4.03324753]
[1767396107692,2.33237176,3131.3,3130.6,0.839]
[1767396107992,3.56309488,3131.1,3130.6,0.001]
[1767396108170,2.33237176,3131.0,3130.6,0.001]
[1767396108567,5.52632425,3131.0,3130.6,0.001]
[1767396108894,0.55263243,3130.9,3130.6,0.001]
[1767396110785,3.74667098,3130.9,3130.6,0.001]
[1767396115902,2.33237176,3130.8,3130.5,0.001]
[1767396117383,5.52654558,3130.7,3130.5,0.001]
[1767396118580,2.33237176,3130.6,3130.5,0.001]
[1767396118771,2.33237176,3130.5,3130.3,0.001]
[1767396118966,2.33237176,3130.5,3130.2,0.001]
[1767396119600,0.87205909,3130.6,3130.2,0.001]
[1767396119779,3.33190061,3130.6,3130.2,0.001]
[1767396119981,0.33319006,3130.5,3130.2,0.001]
[1767396121504,5.98743128,3130.5,3130.2,0.001]
[1767396121681,2.45984152,3130.4,3129.9,0.001]
[1767396123383,5.6544235,3130.3,3129.9,0.001]
[1767396123583,3.02528387,3130.2,3129.9,0.001]
[1767396124908,6.22006407,3130.2,3129.9,0.001]
[1767396125310,3.02528387,3130.2,3129.9,0.001]
[1767396125683,6.21997075,3130.2,3129.9,0.001]
[1767396126704,3.02528387,3130.2,3129.9,0.001]
[1767396126890,0.56544235,3130.2,3129.9,0.001]
[1767396128878,3.76013918,3130.2,3129.9,0.001]
[1767396129285,0.56544235,3130.2,3129.9,0.001]
[1767396129710,2.8358483,3130.1,3129.7,0.001]
[1767396130684,6.03063999,3130.1,3129.7,0.001]
[1767396132594,2.8358483,3130.1,3129.7,0.001]
[1767396132801,6.03064368,3130.1,3129.7,0.001]
[1767396133615,2.45984152,3130.0,3129.7,0.001]
[1767396133785,2.45984152,3130.0,3129.3,0.839]
[1767396133786,2.45984152,3129.9,3129.3,0.839]
[1767396134612,2.45984152,3129.9,3129.3,0.001]
[1767396134800,4.54217265,3130.0,3129.2,0.001]
[1767396134801,2.45984152,3129.7,3129.2,0.001]
[1767396135001,2.59149839,3129.3,3129.2,0.001]
[1767396135598,0.13165687,3129.3,3129.2,0.001]
[1767396136390,2.59149839,3129.3,3128.9,0.838]
[1767396136588,0.25914984,3129.2,3128.6,0.001]
[1767396136905,0.13165687,3129.3,3128.7,2.25435792]
[1767396137218,0.13165687,3129.3,3128.8,2.25435792]
[1767396137393,0.838,3129.9,3129.2,2.25435792]
[1767396137394,6.3899805,3129.9,3129.2,2.25435792]
[1767396137794,2.45984152,3129.8,3128.9,2.25435792]
[1767396137995,2.45984152,3129.8,3128.8,3.09235792]
[1767396138321,2.45984152,3129.8,3128.9,2.25435792]
[1767396139320,3.19519442,3129.7,3128.9,2.25435792]
[1767396139622,3.19519442,3129.7,3129.0,2.25435792]
[1767396141419,8.84982202,3129.9,3129.0,2.25435792]
[1767396141801,2.45984152,3129.8,3129.0,2.25435792]
[1767396141999,3.4427315,3129.8,3129.0,2.25435792]
[1767396142204,2.45984152,3129.7,3129.0,2.25535792]
[1767396143603,3.19529652,3129.6,3129.0,2.25535792]
[1767396146549,6.39059304,3129.6,3129.0,2.25535792]
[1767396146751,2.45984152,3129.5,3128.9,2.25435792]
[1767396146916,6.39059304,3129.6,3128.9,2.25435792]
[1767396147682,3.19529652,3129.6,3128.9,2.25435792]
[1767396147952,6.39059304,3129.6,3128.9,2.25435792]
[1767396149449,6.39059304,3129.6,3128.9,2.25535792]
[1767396150648,2.400026,3129.5,3128.9,0.001]
[1767396152630,3.19550073,3129.4,3128.9,0.001]
[1767396153657,3.19544242,3129.5,3128.9,2.4585863]
[1767396153849,3.19544242,3129.5,3128.9,3.01013138]
[1767396154762,6.39060898,3129.6,3128.9,3.01013138]
[1767396154965,6.39060898,3129.6,3128.9,2.4585863]
[1767396156165,8.79063498,3129.6,3128.9,2.4585863]
[1767396159750,2.400026,3129.5,3128.9,2.4585863]
[1767396159947,2.400026,3129.5,3128.9,0.001]
[1767396160663,8.79102746,3129.4,3128.9,0.001]
[1767396161457,5.59552673,3129.4,3128.9,0.001]
[1767396161658,8.79102746,3129.4,3128.9,0.001]
[1767396162236,2.400026,3129.3,3128.9,0.001]
[1767396162689,2.400026,3129.1,3128.9,0.001]
[1767396162864,2.400026,3129.1,3128.8,0.838]
[1767396164271,2.400026,3129.1,3128.6,0.001]
[1767396164876,5.59587176,3129.1,3128.6,0.001]
[1767396165782,2.400026,3129.0,3128.6,0.001]
[1767396166072,2.400026,3129.0,3128.9,0.001]
[1767396166277,3.19584576,3129.1,3128.9,0.001]
[1767396166476,3.19584576,3129.1,3128.6,0.001]
[1767396166694,2.400026,3129.0,3128.6,0.001]
[1767396170161,5.59594626,3129.0,3128.6,0.001]
[1767396170369,6.47511236,3129.0,3128.6,0.001]
[1767396172184,9.67103262,3129.0,3128.6,0.001]
[1767396172489,2.400026,3128.9,3128.6,0.001]
[1767396174494,3.19611352,3128.8,3128.6,0.001]
[1767396177869,2.400026,3128.7,3127.9,0.001]
[1767396178073,2.71963735,3128.7,3127.9,0.001]
[1767396178478,2.400026,3128.5,3127.9,0.001]
[1767396180377,2.400026,3128.5,3127.9,2.40547649]
[1767396180576,3.19652218,3128.4,3127.9,2.40547649]
[1767396181298,3.8358182,3128.4,3127.9,0.001]
[1767396181505,3.8358182,3128.4,3127.9,2.40547649]
[1767396182488,7.03234038,3128.4,3127.9,0.001]
[1767396182821,2.40283585,3128.3,3127.9,0.001]
[1767396183114,5.59928699,3128.5,3127.9,0.001]
[1767396183406,2.40283585,3128.4,3127.9,0.001]
[1767396184808,3.19662436,3128.3,3127.9,0.001]
[1767396185385,2.40283585,3128.2,3127.9,0.001]
[1767396187015,3.19662436,3128.3,3127.9,0.001]
[1767396188315,0.55994602,3128.2,3127.9,0.001]
[1767396189082,3.75668626,3128.2,3127.9,0.001]
[1767396189286,6.15952211,3128.2,3127.9,0.001]
[1767396189712,2.40283585,3128.1,3127.9,0.001]
[1767396191822,5.59968327,3128.1,3127.9,0.001]
[1767396192006,0.61596293,3128.0,3127.9,0.001]
[1767396193093,0.55994602,3128.2,3127.9,0.001]
[1767396193295,3.75667369,3128.2,3127.9,0.001]
[1767396194008,6.15950954,3128.2,3127.9,0.001]
[1767396194395,2.96278187,3128.2,3127.9,0.001]
[1767396194719,6.1595105,3128.2,3127.9,0.001]
[1767396194917,0.61595105,3128.1,3127.9,0.001]
[1767396195623,3.81279358,3128.1,3127.9,0.001]
[1767396196225,6.21562943,3128.1,3127.9,0.001]
[1767396197029,6.21562943,3128.1,3127.3,0.84]
[1767396197030,2.40283585,3128.0,3127.3,0.84]
[1767396197196,2.40283585,3127.8,3127.3,0.84]
[1767396197397,0.5599869,3127.7,3127.3,0.84]
[1767396197597,2.96282275,3127.7,3127.3,0.84]
[1767396197833,0.5599869,3127.7,3127.3,0.84]
[1767396198218,0.5599869,3127.7,3127.3,0.001]
[1767396198594,2.96282275,3127.7,3127.3,0.001]
[1767396198798,2.69911812,3127.6,3127.3,0.001]
[1767396199231,5.60027789,3127.5,3127.2,0.001]
[1767396199910,0.29628227,3127.6,3127.2,0.001]
[1767396201134,2.40283585,3127.3,3127.0,1e-08]
[1767396201329,3.19754428,3127.4,3127.0,1e-08]
[1767396201330,2.40283585,3127.1,3127.0,1e-08]
[1767396202427,2.40283585,3127.1,3126.4,5.60300651]
[1767396202628,2.40283585,3127.1,3126.5,3.19846413]
[1767396203532,0.56003801,3127.2,3126.6,2.40547649]
[1767396203731,3.19723758,3127.7,3126.6,2.40547649]
[1767396203902,3.19723758,3127.7,3126.4,2.40447649]
[1767396203903,2.40283585,3127.2,3126.4,2.40447649]
[1767396204103,2.40283585,3127.5,3126.5,3.24347649]
[1767396204429,6.39447516,3127.7,3126.6,2.40447649]
[1767396204617,2.40283585,3127.5,3126.6,2.40447649]
[1767396205629,2.40283585,3127.3,3126.6,2.40447649]
[1767396208427,5.60057692,3127.3,3126.6,2.40447649]
[1767396209127,5.60049664,3127.3,3126.7,2.47926195]
[1767396209427,3.19744204,3127.5,3126.7,2.47926195]
[1767396209804,0.9598326,3127.7,3126.8,2.30928042]
[1767396210232,0.002,3127.6,3126.8,2.30928042]
[1767396210426,0.002,3127.6,3127.0,2.30928042]
[1767396210628,0.002,3127.6,3127.2,2.30928042]
[1767396211541,0.002,3127.6,3127.1,0.839]
[1767396213709,2.3083039,3127.6,3127.0,2.30928042]
[1767396213931,2.3083039,3127.6,3127.2,0.839]
[1767396214613,2.3063039,3127.5,3127.2,0.839]
[1767396215718,5.50573632,3127.6,3127.2,0.839]
[1767396216743,2.3083039,3127.6,3127.2,0.839]
[1767396217936,5.50565712,3127.6,3127.2,0.839]
[1767396219936,0.61595105,3128.1,3127.3,0.839]
[1767396220109,3.19698799,3128.0,3127.5,2.30928042]
[1767396220315,3.19672655,3128.2,3127.5,2.30928042]
[1767396220919,3.19862955,3128.3,3127.6,2.30928042]
[1767396222042,0.002,3128.3,3127.7,2.30928042]
[1767396222231,0.002,3128.3,3127.9,2.30928042]
[1767396230356,0.002,3128.3,3128.0,2.30928042]
[1767396230855,0.002,3128.3,3127.9,5.50629766]
[1767396231050,5.50265423,3128.6,3127.9,5.50629766]
[1767396231228,5.50265423,3128.6,3127.9,2.30928042]
[1767396231651,6.39226576,3128.8,3127.9,2.30928042]
[1767396231847,6.39226576,3128.8,3127.8,4.03610211]
[1767396231848,3.19613288,3128.8,3128.0,3.57198872]
[1767396232155,3.19613288,3128.8,3128.1,2.30928042]
[1767396232656,5.50435551,3128.9,3128.1,2.30928042]
[1767396232835,0.002,3128.3,3128.1,2.30928042]
[1767396233037,5.50435551,3128.9,3128.2,2.30928042]
[1767396233253,5.50435551,3128.9,3128.3,0.839]
[1767396233555,5.50435551,3128.9,3128.3,3.14828042]
[1767396234852,5.50435551,3128.9,3128.3,0.839]
[1767396235168,2.3063039,3128.8,3128.3,0.839]
[1767396235530,2.3063039,3128.8,3128.1,2.30928042]
[1767396236040,2.3063039,3128.8,3128.2,0.839]
[1767396236852,2.3063039,3128.8,3128.3,0.839]
[1767396236853,2.3063039,3128.7,3128.3,0.839]
[1767396238159,2.3063039,3128.7,3128.1,2.30928042]
[1767396238466,2.3063039,3128.7,3128.2,0.839]
[1767396239543,2.3063039,3128.7,3128.3,0.839]
[1767396240066,3.17834924,3128.7,3128.3,0.839]
[1767396240734,2.36301879,3128.6,3128.0,0.001]
[1767396240959,2.36301879,3128.6,3128.1,0.839]
[1767396241656,2.36301879,3128.4,3128.1,0.839]
[1767396241859,3.23859576,3128.4,3128.1,0.839]
[1767396243372,3.23859576,3128.4,3128.1,0.83779582]
[1767396244777,0.87557697,3128.4,3128.1,0.83779582]
[1767396245657,6.43511894,3128.4,3128.1,0.83779582]
[1767396246662,2.36301879,3128.3,3128.1,0.83779582]
[1767396246833,2.36301879,3128.2,3128.1,0.83779582]
[1767396247755,0.64351189,3128.3,3128.1,0.83779582]
[1767396248054,0.64351189,3128.3,3128.2,0.839]
[1767396248958,3.00653068,3128.3,3128.2,0.83071146]
[1767396249344,2.37130734,3128.2,3128.0,0.001]
[1767396249650,2.37130734,3128.2,3128.1,0.839]
[1767396250050,2.37130734,3128.2,3127.6,3.19732049]
[1767396250051,2.36301879,3128.1,3127.6,3.19732049]
[1767396250252,2.36301879,3128.1,3127.7,0.839]
[1767396250856,2.36301879,3128.0,3127.7,0.839]
[1767396253133,5.56003519,3128.0,3127.7,0.839]
[1767396253571,3.1970164,3128.0,3127.7,0.839]
[1767396253737,4.14442929,3128.0,3127.7,0.839]
[1767396253934,0.94741289,3128.0,3127.7,0.839]
[1767396254241,4.14436983,3128.0,3127.7,0.839]
[1767396254439,4.14436983,3128.0,3127.6,3.28506541]
[1767396254769,4.14436983,3128.0,3127.7,2.44606541]
[1767396257459,4.14436983,3128.0,3127.7,2.44484282]
[1767396257684,4.14436983,3128.0,3127.6,0.84]
[1767396260387,0.73412023,3127.9,3127.5,0.839]
[1767396260540,3.09713902,3127.9,3127.3,2.44606541]
[1767396260699,2.36301879,3127.8,3127.3,0.839]
[1767396261402,2.36301879,3127.8,3127.1,2.44606541]
[1767396261800,3.19733981,3127.6,3127.2,0.839]
[1767396263028,5.56029891,3127.7,3127.2,0.839]
[1767396264527,8.75757903,3127.7,3127.3,0.001]
[1767396265227,8.75757903,3127.7,3127.0,2.44706541]
[1767396265432,2.36301879,3127.6,3127.0,0.001]
[1767396265761,2.36301879,3127.6,3126.9,0.839]
[1767396265762,2.36301879,3127.1,3126.4,3.28606541]
[1767396265921,3.19774878,3127.2,3126.5,2.44706541]
[1767396266245,6.39549756,3127.2,3126.5,2.44706541]
[1767396266619,8.75851635,3127.2,3126.5,2.44706541]
[1767396266802,9.63436799,3127.2,3126.5,2.44706541]
[1767396267936,6.3959066,3127.0,3126.5,2.44706541]
[1767396268233,3.1979533,3127.0,3126.5,2.44706541]
[1767396271718,2.46390899,3126.9,3126.4,0.001]
[1767396271913,0.88598156,3126.8,3126.4,0.001]
[1767396272118,3.19826014,3126.7,3126.5,0.001]
[1767396273148,2.46390899,3126.6,3126.5,0.001]
[1767396273354,3.19826014,3126.7,3126.5,0.001]
[1767396273709,3.19826014,3126.7,3126.4,0.001]
[1767396273710,8.86042927,3126.7,3126.4,0.001]
[1767396273932,6.63681021,3126.7,3126.4,0.001]
[1767396274105,5.66216913,3126.7,3126.4,0.001]
[1767396274838,2.46390899,3126.6,3126.0,0.001]
[1767396276223,2.46390899,3126.4,3126.0,0.001]
[1767396277337,3.19838729,3126.6,3126.0,0.001]
[1767396277338,5.66228443,3126.6,3126.0,0.001]
[1767396277739,3.19829872,3126.7,3126.1,2.25055599]
[1767396278319,6.39611116,3126.9,3126.1,2.25055599]
[1767396278522,0.98200985,3126.8,3126.1,2.25055599]
[1767396278721,2.46390899,3126.7,3126.0,2.25155599]
[1767396279944,3.19826014,3126.7,3126.0,2.25155599]
[1767396280748,3.20026014,3126.7,3126.0,2.25155599]
[1767396281555,3.20026014,3126.7,3126.1,2.25055599]
[1767396282357,0.002,3126.7,3126.1,2.25055599]
[1767396285333,3.35211682,3126.7,3126.1,2.25055599]
[1767396285841,5.66234945,3126.6,3126.0,0.001]
[1767396286153,2.46390899,3126.5,3126.0,0.001]
[1767396290522,5.6623829,3126.5,3126.0,0.001]
[1767396290718,0.002,3126.6,3126.0,2.25155599]
[1767396290918,0.002,3126.6,3126.2,2.25055599]
[1767396293659,0.002,3126.7,3126.5,2.25055599]
[1767396295937,0.002,3126.7,3126.1,0.62906257]
[1767396296131,0.002,3126.7,3126.2,2.25055599]
[1767396297135,0.002,3126.7,3126.0,0.001]
[1767396297136,2.46590899,3126.7,3126.0,0.001]
[1767396297464,2.71049989,3126.6,3126.0,0.001]
[1767396298658,5.66237372,3126.5,3126.0,0.001]
[1767396299157,2.46390899,3126.4,3126.0,0.001]
[1767396299533,2.46390899,3126.4,3126.0,0.00723009]
[1767396300135,2.46390899,3126.4,3126.0,1e-08]
[1767396300348,2.4079956,3126.2,3125.9,1e-08]
[1767396301164,2.4079956,3126.1,3125.9,1e-08]
[1767396302832,3.76494809,3126.3,3125.9,1e-08]
[1767396302833,2.97423297,3126.3,3125.9,1e-08]
[1767396303151,3.32652579,3126.5,3125.9,2.46356732]
[1767396303569,0.13002232,3126.5,3125.9,2.46356732]
[1767396303867,0.002,3126.5,3125.9,2.46356732]
[1767396304362,0.96001996,3127.1,3126.0,0.839]
[1767396304536,3.19788964,3127.1,3126.6,2.46356731]
[1767396304969,6.39529306,3127.3,3126.6,2.46356731]
[1767396305173,2.4079956,3127.4,3126.6,2.46356731]
[1767396305174,0.88032887,3127.2,3126.6,2.46356731]
[1767396305336,4.15738713,3127.5,3126.7,2.46356731]
[1767396305556,3.19748082,3127.5,3126.7,2.46356731]
[1767396306260,3.19723903,3127.7,3126.7,2.46356731]
[1767396307097,0.002,3127.8,3126.9,2.46356731]
[1767396307390,0.002,3127.9,3127.5,2.46256731]
[1767396307802,0.002,3127.9,3126.8,5.66172517]
[1767396307803,2.4079956,3127.8,3126.8,5.66172517]
[1767396307957,2.4079956,3127.8,3126.9,0.839]
[1767396308456,2.4079956,3127.8,3126.9,3.30256731]
[1767396309400,0.002,3127.9,3127.0,2.46356731]
[1767396310996,2.4079956,3127.8,3127.0,2.46356731]
[1767396311195,2.4079956,3127.7,3126.9,2.46356731]
[1767396311373,0.002,3127.9,3127.0,3.02973983]
[1767396311770,3.19904129,3127.9,3127.0,3.02973983]
[1767396311971,0.002,3127.7,3127.0,3.02973983]
[1767396313887,3.19904129,3127.9,3127.0,3.02973983]
[1767396313888,0.002,3127.9,3127.5,2.46356731]
[1767396314413,0.002,3127.9,3127.2,2.46356731]
[1767396317208,0.002,3127.9,3127.2,5.66129715]
[1767396317517,0.002,3127.9,3127.1,4.03681809]
[1767396317518,2.4079956,3127.8,3127.1,4.03681809]
[1767396319417,2.4079956,3127.8,3127.1,6.5003854]
[1767396320216,5.60513101,3127.8,3127.1,6.5003854]
[1767396320440,5.60513101,3127.8,3127.0,0.56617252]
[1767396320441,2.4079956,3127.7,3127.0,3.19792663]
[1767396320633,2.4079956,3127.7,3127.0,4.03692663]
[1767396321128,2.4079956,3127.6,3127.0,0.839]
[1767396322731,5.60533732,3127.6,3127.0,0.839]
[1767396323639,2.4079956,3127.6,3127.0,0.839]
[1767396323816,2.4079956,3127.6,3127.0,4.03694916]
[1767396324213,2.4079956,3127.6,3126.6,0.001]
[1767396324214,5.60537915,3127.6,3126.9,2.46356731]
[1767396324528,2.4079956,3127.4,3126.8,3.19815451]
[1767396324724,5.60554079,3127.4,3126.7,5.66178097]
[1767396325133,5.60554079,3127.4,3126.7,2.46356731]
[1767396325337,2.4079956,3127.3,3126.6,0.001]
[1767396325509,2.96854968,3127.3,3126.6,0.001]
[1767396326533,6.16619748,3127.3,3126.6,0.001]
[1767396326740,2.4079956,3127.2,3126.6,0.001]
[1767396329050,3.19945987,3127.5,3126.6,2.34872001]
[1767396329251,3.69929547,3127.5,3126.6,2.34872001]
[1767396331958,0.5018356,3127.5,3126.8,2.30846249]
[1767396332121,3.69929728,3127.5,3126.8,2.30846249]
[1767396332951,3.69929728,3127.5,3126.6,2.30946249]
[1767396332952,2.31886434,3127.4,3126.6,2.30946249]
[1767396333150,3.24042667,3127.3,3126.6,2.30946249]
[1767396333848,2.31886434,3127.1,3126.6,0.001]
[1767396334031,2.31886434,3127.0,3126.0,2.30846249]
[1767396334235,2.31886434,3126.8,3125.9,1e-08]
[1767396335051,2.31886434,3126.8,3126.5,0.001]
[1767396335353,2.31886434,3126.8,3125.9,1e-08]
[1767396335864,5.51712448,3126.7,3125.9,1e-08]
[1767396336067,0.87153146,3126.6,3125.9,1e-08]
[1767396336570,3.1903958,3126.6,3125.9,1e-08]
[1767396336764,2.31886434,3126.5,3125.9,1e-08]
[1767396338165,2.31886434,3126.3,3125.5,5.00942858]
[1767396339140,5.51753869,3126.3,3125.5,5.00942858]
[1767396339655,2.31886434,3126.2,3125.5,5.00942858]
[1767396342243,2.31886434,3126.2,3125.5,5.01042858]
[1767396342638,2.31886434,3126.1,3125.5,0.001]
[1767396344351,0.87163379,3126.1,3125.5,0.001]
[1767396344552,5.51768153,3126.2,3125.5,2.30946249]
[1767396346281,2.31886434,3126.0,3125.5,0.001]
[1767396346477,5.517943,3125.9,3125.4,0.001]
[1767396346678,2.31886434,3125.7,3125.2,0.001]
[1767396349358,2.31886434,3125.6,3124.7,2.30946249]
[1767396349591,2.31886434,3125.6,3124.7,5.50976384]
[1767396349760,2.31886434,3125.6,3124.8,2.30846249]
[1767396349953,2.31886434,3125.6,3124.8,5.50865501]
[1767396350259,2.31886434,3125.6,3125.1,0.001]
[1767396350458,3.72807467,3125.6,3125.1,0.001]
[1767396351538,3.19948808,3125.5,3125.1,0.001]
[1767396351719,2.31886434,3125.4,3125.1,0.001]
[1767396353048,2.31886434,3125.3,3123.7,2.30846249]
[1767396353255,2.31886434,3125.1,3123.9,1.07094625]
[1767396353557,2.31886434,3125.1,3124.1,3.20086577]
[1767396353913,2.31886434,3125.1,3124.2,3.20081849]
[1767396354355,2.31886434,3125.1,3124.1,3.20087915]
[1767396354557,2.31886434,3125.1,3124.2,0.32008792]
[1767396355062,2.31886434,3125.0,3124.1,6.40182431]
[1767396355240,2.31886434,3125.0,3124.2,0.03200819]
[1767396355443,2.31886434,3125.0,3124.1,8.7102868]
[1767396355844,2.31886434,3125.0,3124.1,5.50936494]
[1767396356042,2.31886434,3125.0,3124.2,0.87103815]
[1767396356830,2.31886434,3125.0,3124.2,3.17950064]
[1767396357437,2.31886434,3125.0,3124.3,3.20071696]
[1767396358744,2.31886434,3125.0,3124.3,5.50917945]
[1767396358938,2.31886434,3125.0,3124.4,0.84]
[1767396359168,2.31886434,3125.5,3124.6,2.30846249]
[1767396359577,2.42019561,3125.4,3124.6,2.30846249]
[1767396361734,5.61988843,3125.3,3124.6,2.30846249]
[1767396361949,2.42019561,3125.3,3124.6,5.50886575]
[1767396362351,2.42019561,3125.6,3124.7,2.26935283]
[1767396362554,2.42019561,3125.6,3124.8,2.26935283]
[1767396362862,2.42019561,3125.5,3124.8,2.26935283]
[1767396363745,5.61968907,3125.5,3124.8,5.46953604]
[1767396364049,2.42019561,3125.5,3124.8,5.46953604]
[1767396366987,2.42019561,3125.5,3124.8,8.66974085]
[1767396367194,2.42019561,3125.5,3124.9,0.93122154]
[1767396367869,2.42019561,3125.5,3124.9,4.13123835]
[1767396368276,2.42019561,3125.5,3124.9,6.40059118]
[1767396369822,2.42019561,3125.5,3124.9,7.24059118]
[1767396372095,0.002,3125.6,3125.0,2.26935283]
[1767396372611,0.002,3125.6,3125.1,2.26935283]
[1767396372820,0.002,3125.6,3125.2,2.26935283]
[1767396373022,2.42019561,3126.2,3125.5,2.26935283]
[1767396373023,3.19900809,3126.0,3125.5,2.26935283]
[1767396374038,0.002,3125.6,3125.5,2.26935283]
[1767396374325,3.1989114,3126.1,3125.5,2.26935283]
[1767396375020,6.3973387,3126.3,3125.5,2.26935283]
[1767396375225,9.78328774,3126.3,3125.5,2.26935283]
[1767396376828,8.81753431,3126.3,3125.5,2.26935283]
[1767396377043,5.61886496,3126.3,3125.6,2.26935283]
[1767396377397,3.19866935,3126.3,3125.6,2.26935283]
[1767396378222,3.19861235,3126.4,3125.6,2.26935283]
[1767396379205,3.19861235,3126.4,3125.7,2.26935283]
[1767396380663,5.61868236,3126.5,3125.7,2.26935283]
[1767396381204,5.61868236,3126.5,3125.8,2.26935283]
[1767396381415,0.002,3126.3,3125.8,2.26935283]
[1767396385730,0.002,3126.3,3125.4,4.03956009]
[1767396385731,2.42219561,3126.3,3125.6,0.84]
[1767396385921,2.42019561,3126.2,3125.6,0.84]
[1767396386322,2.42019561,3126.2,3125.6,3.10935283]
[1767396386638,2.42019561,3126.2,3125.6,0.84]
[1767396386825,2.42019561,3126.2,3125.0,3.31343027]
[1767396386826,2.42019561,3126.2,3125.3,3.19966206]
[1767396387035,2.42019561,3126.2,3125.1,5.46922113]
[1767396387036,2.42019561,3126.0,3125.0,1.04407744]
[1767396387249,2.42019561,3125.9,3124.9,3.20003843]
[1767396387453,2.42019561,3125.9,3125.0,0.84]
[1767396387751,2.42019561,3125.6,3124.5,3.20048639]
[1767396387925,2.42019561,3125.6,3124.6,0.84]
[1767396388250,2.42019561,3125.6,3124.5,4.0405037]
[1767396388408,3.01973352,3125.6,3124.5,4.99155836]
[1767396388923,2.43935302,3125.4,3124.5,7.42954175]
[1767396389107,2.43935302,3125.4,3124.5,6.58954175]
[1767396389304,2.43935302,3125.4,3124.5,7.42954175]
[1767396389807,2.43935302,3125.4,3124.5,4.22904965]
[1767396390207,2.44274095,3125.3,3124.5,3.38904965]
[1767396390440,2.44274095,3125.3,3124.5,2.43899499]
[1767396390642,2.44274095,3125.3,3124.5,0.001]
[1767396391423,2.44274095,3125.1,3124.5,0.001]
[1767396393432,2.44274095,3124.9,3124.5,0.001]
[1767396395225,5.64267421,3125.1,3124.5,0.001]
[1767396395538,2.44274095,3125.1,3124.5,2.34887669]
[1767396395837,3.19976374,3125.3,3124.5,2.92670675]
[1767396396032,3.19976374,3125.3,3124.5,2.90590602]
[1767396397742,3.19959062,3125.4,3124.6,2.34787669]
[1767396399139,6.39918124,3125.4,3124.6,2.34787669]
[1767396399746,3.19959062,3125.4,3124.6,2.34787669]
[1767396399943,3.19959062,3125.4,3124.7,2.34787669]
[1767396400246,2.44274095,3125.5,3124.7,2.34787669]
[1767396400660,5.64224927,3125.5,3124.7,2.34787669]
[1767396401214,0.84,3125.6,3124.9,2.34787669]
[1767396401524,4.03938996,3125.6,3124.9,2.34787669]
[1767396401729,6.48213091,3125.6,3124.9,2.34787669]
[1767396402618,2.44274095,3125.5,3124.8,3.20020481]
[1767396403035,2.44274095,3125.5,3124.8,4.15905098]
[1767396403532,2.44274095,3125.5,3124.8,6.50692767]
[1767396404053,3.19956157,3125.5,3124.9,2.34787669]
[1767396405545,0.88179436,3126.0,3125.0,2.34787669]
[1767396405546,3.32453531,3126.0,3125.0,2.34787669]
[1767396405748,3.19912453,3125.9,3125.2,2.34787669]
[1767396405922,5.64175457,3126.0,3125.2,2.34787669]
[1767396407053,0.002,3125.6,3125.2,2.34787669]
[1767396408464,0.002,3125.6,3125.3,2.34787669]
[1767396409326,0.002,3125.6,3125.3,3.27810309]
[1767396410331,4.04069824,3126.3,3125.3,3.27810309]
[1767396410332,2.44474095,3126.3,3125.5,2.34787669]
[1767396412530,0.002,3126.3,3125.6,2.34787669]
[1767396412735,0.002,3126.3,3125.8,2.34787669]
[1767396413631,2.44474095,3126.3,3125.7,0.87468352]
[1767396413836,2.44474095,3126.3,3125.5,3.19947043]
[1767396414251,2.44274095,3126.2,3125.5,3.19947043]
[1767396415057,5.64153535,3126.2,3125.5,3.19947043]
[1767396415260,2.44274095,3126.2,3125.5,3.19947043]
[1767396415650,2.44274095,3126.2,3125.5,5.54734712]
[1767396415841,2.44274095,3126.2,3125.6,0.95869306]
[1767396417658,2.44274095,3126.2,3125.6,4.15801659]
[1767396420034,2.44274095,3126.2,3125.6,6.61639514]
[1767396420960,0.002,3126.3,3125.7,2.49037138]
[1767396421364,0.002,3126.3,3125.7,2.45837855]
[1767396421570,0.002,3126.3,3125.8,0.98157809]
[1767396421867,0.002,3126.3,3125.9,2.45837855]
[1767396424169,0.002,3126.3,3125.9,5.65743441]
[1767396428469,0.002,3126.3,3126.0,2.45837855]
[1767396428653,0.002,3126.8,3126.2,2.45837855]
[1767396429768,0.002,3126.3,3126.2,2.45837855]
[1767396429976,0.002,3126.9,3126.6,2.45837855]
[1767396430187,2.40603037,3126.9,3126.3,2.45837855]
[1767396430341,2.40603037,3126.9,3126.4,0.24583786]
[1767396431862,2.40603037,3126.9,3126.4,3.44440472]
[1767396432973,2.40603037,3126.9,3126.4,0.24583786]
[1767396435653,2.40603037,3126.9,3126.4,3.44440145]
[1767396436676,2.40403037,3126.8,3125.6,3.19930285]
[1767396436888,2.40403037,3126.8,3124.6,3.37]
[1767396436889,2.40403037,3126.8,3125.5,0.84]
[1767396437047,2.40403037,3126.7,3125.6,3.19938541]
[1767396437673,2.40403037,3126.5,3125.6,3.19938541]
[1767396437861,2.40403037,3126.5,3125.6,4.16911326]
[1767396438191,2.40403037,3126.5,3125.6,0.96972785]
[1767396439689,2.40403037,3126.3,3125.5,0.84]
[1767396440193,2.40403037,3126.3,3125.5,4.0394709]
[1767396440350,2.40403037,3126.3,3125.6,3.199365]
[1767396440784,2.40403037,3126.3,3125.5,4.03944688]
[1767396441876,4.03719039,3126.8,3125.5,0.84]
[1767396441877,2.40403037,3126.1,3125.5,0.84]
[1767396442264,2.40403037,3126.1,3125.5,1.24396131]
[1767396442983,2.40403037,3126.1,3125.5,4.44343584]
[1767396443367,2.40403037,3126.1,3125.5,1.24396131]
[1767396444897,2.40403037,3126.1,3125.5,4.44342399]
[1767396445400,2.40403037,3126.1,3125.5,6.90180254]